Cogmind - Beta 16 @@@ ROGUE MODE // 2025.12.20 @ 21:52:07 Player: ffmpega Result: Self-destructed Performance ------------- Evolutions (2) 1000 Regions Visited (3) 600 Robots Destroyed (20) 100 Value Destroyed (554) 554 Prototype IDs (0) 0 Alien Tech Used (0) 0 Bonus (0) 0 TOTAL SCORE: 2254 Bonus ------- None Cogmind --------- Core Integrity 550/550 Matter 230/300 Energy 250/250 System Corruption 0% Temperature Cool (0) Movement Treading (240) Ox1 Location -8/Materials Parts ------- > --- POWER (1) -------- Ion Engine > --- PROPULSION (4) --- Light Treads Light Treads Light Treads Light Treads > --- UTILITY (2) ------ Huge Storage Unit Light Armor Plating > --- WEAPON (4) ------- EM Shotgun Medium Laser Beam Rifle Beam Rifle > --- INVENTORY (25) --- Light Ion Engine Light Ion Engine Light Treads Improved Heat Sink Large Matter Pod (150) Terrain Scanner Improved Weapon Shielding Light Armor Plating Small Laser Light EM Pulse Cannon Light EM Pulse Cannon Light EM Pulse Cannon Light EM Pulse Cannon Light EM Pulse Cannon Heavy Assault Rifle Heavy Assault Rifle Mini Grenade Launcher Peak State ------------ > --- POWER ------------ Ion Engine > --- PROPULSION ------- Light Treads Light Treads Light Treads Light Treads > --- UTILITY ---------- Huge Storage Unit Light Armor Plating > --- WEAPON ----------- EM Shotgun Medium Laser Beam Rifle Beam Rifle > --- INVENTORY -------- Light Ion Engine Light Ion Engine Light Treads Improved Heat Sink Large Matter Pod Terrain Scanner Improved Weapon Shielding Light Armor Plating Medium Laser Small Laser Light EM Pulse Cannon Light EM Pulse Cannon Light EM Pulse Cannon Light EM Pulse Cannon Light EM Pulse Cannon Heavy Assault Rifle Heavy Assault Rifle Mini Grenade Launcher [Rating: 17] Favorites ----------- Power Ion Engine Engine Ion Engine Propulsion Light Treads Treads Light Treads Leg Aluminum Leg Utility Huge Storage Unit Storage Huge Storage Unit Protection Light Armor Plating Weapon Medium Laser Energy Gun Medium Laser Build | -11 -10 -9 -8 ------- Run | Yrd Mat Mat Mat Slots Evolved 4 | . . 2 2 Power . | . . . . Propulsion 2 | . . 2 . Utility . | . . . . Weapon 2 | . . . 2 Parts Attached 24 | 6 1 13 4 Power 2 | 1 . 1 . Engine 2 | 1 . 1 . Core . | . . . . Reactor . | . . . . Propulsion 11 | 2 . 9 . Treads 8 | . . 8 . Leg 3 | 2 . 1 . Wheel . | . . . . Hover . | . . . . Flight . | . . . . Utility 5 | 1 1 2 1 Device . | . . . . Storage 4 | 1 1 2 . Processor . | . . . . Hackware . | . . . . Protection 1 | . . . 1 Artifact . | . . . . Weapon 6 | 2 . 1 3 Energy Gun 6 | 2 . 1 3 Energy Cannon . | . . . . Ballistic Gun . | . . . . Ballistic Cannon . | . . . . Launcher . | . . . . Special Weapon . | . . . . Impact Weapon . | . . . . Slashing Weapon . | . . . . Piercing Weapon . | . . . . Special Melee Weapon . | . . . . Unidentified Prototypes . | . . . . Parts Lost 3 | . . 3 . Power 1 | . . 1 . Propulsion . | . . . . Utility 1 | . . 1 . Weapon 1 | . . 1 . Highest Loss Streak 2 | . . 2 . To Critical Strikes . | . . . . Average Backups 14 | 2 4 16 17 Power 1 | . . 1 2 Propulsion 2 | 1 2 2 1 Utility 3 | . . 4 5 Weapon 7 | . 1 8 9 Tool/Special . | . . . . Unused Backups 19 | . . 4 15 Power 2 | . . . 2 Propulsion . | . . . . Utility 4 | . . . 4 Weapon 13 | . . 4 9 Tool/Special . | . . . . Average Slot Usage (%) 91 | . 85 91 98 Engine 9 | . 14 9 9 Treads 31 | . . 35 36 Leg 7 | . 28 5 . Storage 17 | . 14 18 9 Energy Gun 23 | . 28 21 35 Peak Build Rating 17 | 6 7 14 17 Average Rating 11 | 4 6 11 15 On Entrance 5 | . 6 6 11 Avg Prop Armor Cover (%) . | . . . . Naked Turns . | . . . . Heaviest Build 99 | 12 12 90 99 Greatest Support 80 | 20 20 80 80 Greatest Overweight (x) 2 | 2 . 1 1 Average Overweight (x) . | . . . 1 Largest Inventory Capacity 25 | 8 25 25 25 Average Capacity 19 | 7 8 21 25 Most Carried 24 | 3 6 24 20 Average Carried 14 | 2 4 16 17 Final Capacity 25 | 8 8 25 25 Final Carried 21 | 3 6 21 17 Class Distribution -------------------- 55% | Scavenger-Mutant 34% | Mutant 10% | Scavenger-Tank Dominant Class ---------------- Mutant | -10/Materials Scavenger-Mutant | -9/Materials Scavenger-Tank | -8/Materials Resources | -11 -10 -9 -8 ----------- Run | Yrd Mat Mat Mat Matter Collected 523 | 242 35 246 . Remotely . | . . . . Salvage Created 763 | . 69 694 . Parts 51 | . 4 47 . Haulers Intercepted . | . . . . Recyclers Shooed . | . . . . Parts Field Recycled . | . . . . Retrieved Matter . | . . . . Parts Self-Destructed . | . . . . Prevented . | . . . . Parts Restored . | . . . . Kills | -11 -10 -9 -8 ------- Run | Yrd Mat Mat Mat Combat Hostiles Destroyed 18 | . . 18 . Melee 1 | . . 1 . Guns 17 | . . 17 . Classes Destroyed 6 | . 1 5 . Worker 1 | . . 1 . Recycler 1 | . 1 . . Swarmer 6 | . . 6 . Grunt 5 | . . 5 . Duelist 1 | . . 1 . Sentry 6 | . . 6 . Best Kill Streak 4 | . 1 4 . Combat Bots Only 4 | . . 4 . Max Kills in Single Turn 1 | . 1 1 . Gunslinging . | . . . . Exploded . | . . . . Melee 1 | . . 1 . Uniques/NPCs Destroyed . | . . . . Combat | -11 -10 -9 -8 -------- Run | Yrd Mat Mat Mat Hostile Shots Fired 112 | . . 112 . Missed 27 | . . 27 . Hits 85 | . . 85 . Melee 4 | . . 4 . Projectile 81 | . . 81 . Critical Strikes 2 | . . 2 . Damage Taken 1108 | . . 1108 . Core 153 | . . 153 . Absorbed by Shields . | . . . . Core Remaining (%) 87 | 100 100 61 . Volleys Fired 51 | . 4 47 . Largest 2 | . 2 2 . Hottest 100 | . 90 100 . Shots Fired 98 | . 8 90 . Gun 98 | . 8 90 . Cannon . | . . . . Launcher . | . . . . Special . | . . . . Kinetic . | . . . . Thermal 84 | . 4 80 . Explosive . | . . . . Electromagnetic 14 | . 4 10 . Robot Hit Streak 17 | . 1 17 . Robot Miss Streak 8 | . 3 8 . Penetration Max . | . . . . Secondary Targets 1 | . . 1 . Max Gunslinging Chain 1 | . . 1 . Shots Hit Robots 66 | . 2 64 . Core Hits 34 | . 1 33 . Critical Kills . | . . . . Critical Parts Destroyed . | . . . . Critical Strikes 9 | . . 9 . Burn 9 | . . 9 . Melee Attacks . | . . . . Impact . | . . . . Slashing . | . . . . Piercing . | . . . . Sneak Attacks . | . . . . Combat Hostiles . | . . . . Follow-up Attacks . | . . . . Damage Inflicted 875 | . 45 830 . Guns 860 | . 41 819 . Cannons . | . . . . Explosions . | . . . . Melee . | . . . . Ramming 15 | . 4 11 . Kinetic . | . . . . Thermal 756 | . 26 730 . Explosive . | . . . . Electromagnetic 104 | . 15 89 . Impact . | . . . . Slashing . | . . . . Piercing . | . . . . Highest Corruption . | . . . . Average Corruption . | . . . . Corruption Purged . | . . . . Corruption Blocked . | . . . . Overload Shots . | . . . . Overflow Damage . | . . . . Projectiles . | . . . . Explosions . | . . . . Melee . | . . . . Knockbacks . | . . . . Impact . | . . . . Kinetic . | . . . . Secondary . | . . . . Self-Inflicted Damage . | . . . . Shots . | . . . . Rammed 2 | . . 2 . Targets Rammed 3 | . 1 2 . Kicked 1 | . 1 . . Crushed . | . . . . Highest Temperature 198 | . 60 198 . Average Temperature 71 | . 25 75 . Received Heat Transfer 267 | . . 267 . Siege Activations . | . . . . Martial Activations . | . . . . Shielding Activations . | . . . . Robots Disrupted . | . . . . Combat Hostiles . | . . . . Robots Corrupted . | . . . . Combat Hostiles . | . . . . Parts Fried . | . . . . Impact Corruptions . | . . . . Robots Melted . | . . . . Combat Hostiles . | . . . . Parts Melted 6 | . . 6 . Heat Transferred 2923 | . 74 2849 . Parts Sabotaged . | . . . . Parts Stolen . | . . . . Parts Stripped . | . . . . Power Chain Reactions . | . . . . Alert | -11 -10 -9 -8 ------- Run | Yrd Mat Mat Mat Maximum Alert Level . | . . . . Low Security (%) 100 | 100 100 100 100 Level 1 . | . . . . Level 2 . | . . . . Level 3 . | . . . . Level 4 . | . . . . Level 5 . | . . . . High Security . | . . . . Max Security . | . . . . Peak Influence 154 | . . 154 49 Initial 49 | . . . 49 Average 43 | . . 55 20 Influence Increases 492 | . 5 487 . Destroy 0b10 Robot/C 360 | . . 360 . Destroy 0b10 Robot/NC 10 | . 5 5 . Destroy Leader 90 | . . 90 . Destroy Structure 2 | . . 2 . Partial Spotted 15 | . . 15 . Lose Combat Pursuer 15 | . . 15 . Influence Decreases 492 | . 5 369 118 Entered New Map 69 | . . . 69 Time Decay 393 | . 5 339 49 Lost Part 30 | . . 30 . Squads Dispatched 1 | . 1 . . Investigation . | . . . . Extermination . | . . . . Reinforcement 1 | . 1 . . Assault . | . . . . Garrison . | . . . . Intercept . | . . . . Searches Triggered . | . . . . Construction Impeded . | . . . . Haulers Reinforced . | . . . . Active Scanning Responses . | . . . . Cargo Convoy Interrupts . | . . . . Stealth | -11 -10 -9 -8 --------- Run | Yrd Mat Mat Mat Distress Signals 1 | . . 1 . Communications Jammed . | . . . . Distress Signals . | . . . . Times Spotted 27 | . 3 24 . Peak Tracking Total 4 | . 3 4 . Tactical Retreats 1 | . . 1 . Traps | -11 -10 -9 -8 ------- Run | Yrd Mat Mat Mat Traps Triggered . | . . . . Indirectly . | . . . . Trap Hack Attempts . | . . . . Triggered . | . . . . Disarmed . | . . . . Reprogrammed . | . . . . Reused . | . . . . Traps Extracted . | . . . . Installed . | . . . . Triggered . | . . . . Machines | -11 -10 -9 -8 ---------- Run | Yrd Mat Mat Mat Machines Disabled . | . . . . Max in Single Turn . | . . . . Machines Repaired . | . . . . Machines Dismantled . | . . . . Machines Sabotaged . | . . . . Overloaded Fab Kills . | . . . . Hacking | -11 -10 -9 -8 --------- Run | Yrd Mat Mat Mat Machines Accessed . | . . . . Terminals . | . . . . Fabricators . | . . . . Repair Stations . | . . . . Recycling Units . | . . . . Scanalyzers . | . . . . Garrison Access . | . . . . Total Hacks . | . . . . Successful . | . . . . Failed . | . . . . Catastrophic . | . . . . Database Lockouts . | . . . . Manual . | . . . . Terminals . | . . . . Fabricators . | . . . . Repair Stations . | . . . . Recycling Units . | . . . . Scanalyzers . | . . . . Garrison Access . | . . . . Terminal Hacks . | . . . . Fabricator Hacks . | . . . . Repair Station Hacks . | . . . . Recycling Unit Hacks . | . . . . Scanalyzer . | . . . . Garrison Access Hacks . | . . . . Unauthorized Hacks . | . . . . Terminals . | . . . . Fabricators . | . . . . Repair Stations . | . . . . Recycling Units . | . . . . Scanalyzers . | . . . . Garrison Access . | . . . . Data Cores Recovered . | . . . . Used . | . . . . Hacking Detections . | . . . . Full Trace Events . | . . . . Feedback Events . | . . . . Feedback Blocked . | . . . . Robot Schematics Acquired . | . . . . Robots Built . | . . . . Authchips . | . . . . Time . | . . . . Total Robot Build Rating . | . . . . Part Schematics Acquired . | . . . . Parts Built . | . . . . Authchips . | . . . . Time . | . . . . Total Part Build Rating . | . . . . Part Studies Acquired . | . . . . Parts Repaired . | . . . . Time . | . . . . Parts Recycled . | . . . . Recycled Matter . | . . . . Retrieved Matter . | . . . . Retrieved Components . | . . . . Parts Scanalyzed . | . . . . Part Schematics Acquired . | . . . . Parts Damaged . | . . . . Bothacking | -11 -10 -9 -8 ------------ Run | Yrd Mat Mat Mat Used RIF Installer . | . . . . Robots Hacked . | . . . . Non-combat . | . . . . Combat . | . . . . Robot Hacks Applied . | . . . . Relay Couplers Released . | . . . . Fabnet Peak Effective % . | . . . . Robots Rewired . | . . . . Allies Hacked . | . . . . Hacks Repelled . | . . . . Allies | -11 -10 -9 -8 -------- Run | Yrd Mat Mat Mat Total Allies . | . . . . Largest Group . | . . . . Highest-Rated Group . | . . . . Highest-Rated Ally . | . . . . Total Orders . | . . . . Ally Attacks . | . . . . Total Damage . | . . . . Kills . | . . . . Allies Corrupted . | . . . . Allies Melted . | . . . . Intel | -11 -10 -9 -8 ------- Run | Yrd Mat Mat Mat Active Infowar (turns) . | . . . . Robot Analysis Total . | . . . . Derelict Logs Recovered . | . . . . Drone Launches . | . . . . Drone Recoveries . | . . . . Exploration | -11 -10 -9 -8 ------------- Run | Yrd Mat Mat Mat Turns Passed 1421 | 73 129 1077 142 Spaces Moved 584 | 48 86 400 50 Core 5 | 5 . . . Treads 350 | . . 300 50 Legs 229 | 43 86 100 . Wheels . | . . . . Hover . | . . . . Flight . | . . . . Fastest Speed 50 | 50 120 120 240 Average Speed 190 | 127 120 206 240 Slowest Speed 240 | 190 120 240 240 Overloaded Moves . | . . . . Propulsion Burnouts . | . . . . Robots Hopped . | . . . . Potential Cave-ins . | . . . . Cave-ins Triggered . | . . . . Exploration Rate (%) 20 | 4 27 42 8 Regions Visited 3 Branch Regions . Pre-discovered Areas . | . . . . Known Exits Taken . | . . . . Unknown Exits Taken 3 | 1 1 1 . Scrap Searched . | . . . . Spaces Dug . | . . . . Terrain Destroyed . | . . . . Melee . | . . . . Projectile . | . . . . AOE . | . . . . Terrain Rammed . | . . . . Walls Destroyed . | . . . . Machines Disabled . | . . . . Actions | -11 -10 -9 -8 --------- Run | Yrd Mat Mat Mat Total 793 | 56 104 561 72 Wait 84 | . 7 60 17 Move 581 | 47 85 399 50 Hop . | . . . . Pick Up 29 | 3 2 24 . Fast Attach 16 | 6 2 8 . Attach 4 | . . 1 3 Detach 4 | . 2 2 . Swap 6 | . . 5 1 Drop 15 | . 1 13 1 Fire 51 | . 4 47 . Melee . | . . . . Ram . | . . . . Kick 1 | . 1 . . Crush 2 | . . 2 . Escape Stasis . | . . . . Rewire . | . . . . Trap . | . . . . Miscellaneous . | . . . . Route ------- -11/Scrapyard -10/Materials -9/Materials -8/Materials History --------- Turn | Location | Event 10 | -11/Scrapyard | Discovered new exit (range 16) 74 | -11/Scrapyard | Entered Materials 188 | -10/Materials | Discovered new exit (range 13) 203 | -10/Materials | Entered another Materials area 203 | -9/Materials | Evolved 2 slots: Propulsion x2 305 | -9/Materials | Build established: Mutant 687 | -9/Materials | Build established: Scavenger-Mutant 1270 | -9/Materials | Discovered new exit (range 5) 1280 | -9/Materials | Entered another Materials area 1280 | -8/Materials | Evolved 2 slots: Weapon x2 1422 | -8/Materials | Self-destructed Last Messages --------------- (Burn). 01135_ G-34 Mercenary destroyed. 01147_ K-01 Serf collects debris. 01153_ G-34 Mercenary suffers critical hit (Burn). 01154_ K-01 Serf cleans the Atomic Centrifuge. 01159_ K-01 Serf collects debris. 01159_ Ion Engine melted. 01159_ Heat Sink melted. 01159_ G-34 Mercenary destroyed. 01160_ K-01 Serf collects debris. 01166_ K-01 Serf cleans the Atomic Centrifuge. 01173_ Dropped Lgt. Treads. 01187_ Acquired Lgt. Treads. 01197_ K-01 Serf collects debris. 01270_ EXIT=FOUND PARAMETERS=WEAPON+2 LOCATION=UNKNOWN GOAL=ESCAPE 01285_ Dropped Med. Laser. Map ----- +----------------------------------------------------+ | | | ??????????????????????????????????? | | ??????????????????????????????????? | | ??????????????????????????????????? | | ???############???????????????????? | | ???# #???????????????????? | | ???# #???????????????????? | | ???# #???????????????????? | | ???# #???????????????????? | | ????###### #???????????????????? | | ?????????# #???????????????????? | | ?????????# #???????????????????? | | ?????????# #???????????????????? | | ??######## #???????????????????? | | ??# # ####+######+###?????? | | ??# """ # ??? | | ??# """ # [ ??? | | ??# """ + ??? | | ??# #### #########+####????? | | ??# #??# #?????????????????? | | ??########### #?????????????????? | | ?????# # #?????????????????? | | ?????# """ # #?????????????????? | | ?????# """ + #?????????????????? | | ?????# """ # #?????????????????? | | ?????# @/# #?????????????????? | | ?????#] # #?????????????????? | | ?????######## #?????????????????? | | ????????????# #?????????????????? | | ????????????# #?????????????????? | | ????????????# #?????????????????? | | ????????????# #?????????????????? | | ???????????? #?????????????????? | | ???????????? +?????????????????? | | ??????????? #?????????????????? | | ??????????? #?????????????????? | | ?????????? #?????????????????? | | ??????????! #?????????????????? | | ?????????#### #?????????????????? | | ????????????# ??????????????????? | | ????????????# ??????????????????? | | ????????????? ??????????????????? | | ??????????????????????????????????? | | ??????????????????????????????????? | | ??????????????????????????????????? | | ??????????????????????????????????? | | ??????????????????????????????????? | | ??????????????????????????????????? | | ??????????????????????????????????? | | ??????????????????????????????????? | +----------------------------------------------------+ Best States ------------- Heat Dissipation 31 Energy Generation 10 Energy Capacity 450 Matter Stores 358 Matter Capacity 450 Sight Range 16 Terrain Scan Density 10 Armor Coverage 150 Evasion (%) 55 Recoil Reduction 4 Item Schematics ----------------- None Robot Schematics ------------------ None Fabricated ------------ Nothing Repaired ---------- Nothing Studied --------- None Alien Tech Used ----------------- None Achievements -------------- DATA ERROR: Steam Global Achievement% For Emergencies Only There's More Where That Came From Challenges ------------ None Game ------ Seed AssemblyLightComputer Manual? 0 Play Time 00:23:36 Cumulative 8.4 hours Start 2025.11.16 @ 02:06:11 End 2025.12.20 @ 21:52:07 Sessions 3 Manual Loads 0 Difficulty Rogue Special Mode None Game No. 13 Rogue 13 Adventurer 0 Explorer 0 Win Type - Total 0 Types 0/0/0/0/0/0/0/0/0/0 Lore% 2 Gallery% 10 Achievement% 7 Wizard Run 0 Options --------- Layout 1 ASCII 0 Keyboard 1 Movement Vi Keybinds 0 Fullscreen 1 Font 24/Smallcaps Map View 50x35 Zoom Use 0% Tactical HUD 1 Map Filters NONE Filters NONE Steam 1 RUN: 8010d284-872c-4b89-8a15-29702947bcd7